[Event "Titled Tuesday Blitz June 6 Early 2023"]
[White "Georg, Heinz"]
[Black "Trifan, Andrei Ioan"]
[WhiteFideId "4607295"]
[BlackFideId "12967068"]
[WhiteElo "2324"]
[BlackElo "2208"]
[Result "0-1"]
[Round "5"]
[TimeControl "180+2"]
[Date "2023.06.06"]
[WhiteClock "0:00:02"]
[BlackClock "0:00:41"]
[Board "114"]

1. e4 {[%clk 0:03:00]}  b6 {[%clk 0:02:57]} 2. d4 {[%clk 0:03:00]}  Bb7 {[%clk 0:02:57]} 3. Nc3 {[%clk 0:03:00]}  e6 {[%clk 0:02:55]} 4. f4 {[%clk 0:02:58]}  d6 {[%clk 0:02:54]} 5. Nf3 {[%clk 0:02:58]}  Nd7 {[%clk 0:02:52]} 6. Bd3 {[%clk 0:02:57]}  g6 {[%clk 0:02:48]} 7. O-O {[%clk 0:02:50]}  Bg7 {[%clk 0:02:48]} 8. e5 {[%clk 0:02:50]}  Ne7 {[%clk 0:02:36]} 9. exd6 {[%clk 0:02:48]}  cxd6 {[%clk 0:02:37]} 10. Ne4 {[%clk 0:02:29]}  Nf6 {[%clk 0:02:27]} 11. Nxf6+ {[%clk 0:02:25]}  Bxf6 {[%clk 0:02:28]} 12. c3 {[%clk 0:02:25]}  O-O {[%clk 0:02:21]} 13. Qe2 {[%clk 0:02:01]}  Rc8 {[%clk 0:02:21]} 14. Bd2 {[%clk 0:02:00]}  Qc7 {[%clk 0:02:22]} 15. Rae1 {[%clk 0:01:51]}  Rfd8 {[%clk 0:02:14]} 16. Ba6 {[%clk 0:01:21]}  Qb8 {[%clk 0:02:01]} 17. Bxb7 {[%clk 0:01:15]}  Qxb7 {[%clk 0:02:02]} 18. Qe4 {[%clk 0:01:14]}  Qxe4 {[%clk 0:02:00]} 19. Rxe4 {[%clk 0:01:14]}  b5 {[%clk 0:02:00]} 20. a3 {[%clk 0:01:13]}  Nd5 {[%clk 0:01:57]} 21. Ne1 {[%clk 0:01:12]}  Nb6 {[%clk 0:01:55]} 22. Nd3 {[%clk 0:01:10]}  a5 {[%clk 0:01:55]} 23. b3 {[%clk 0:00:48]}  a4 {[%clk 0:01:49]} 24. bxa4 {[%clk 0:00:45]}  Nxa4 {[%clk 0:01:50]} 25. Rc1 {[%clk 0:00:30]}  d5 {[%clk 0:01:42]} 26. Ree1 {[%clk 0:00:30]}  Nxc3 {[%clk 0:01:39]} 27. Ne5 {[%clk 0:00:21]}  Ne4 {[%clk 0:01:33]} 28. Ba5 {[%clk 0:00:20]}  Bxe5 {[%clk 0:01:25]} 29. fxe5 {[%clk 0:00:18]}  Re8 {[%clk 0:01:25]} 30. Kf1 {[%clk 0:00:13]}  Rc4 {[%clk 0:01:21]} 31. Rxc4 {[%clk 0:00:07]}  bxc4 {[%clk 0:01:22]} 32. Rb1 {[%clk 0:00:06]}  Ra8 {[%clk 0:01:18]} 33. Bb4 {[%clk 0:00:05]}  Rb8 {[%clk 0:01:17]} 34. Rc1 {[%clk 0:00:03]}  Kg7 {[%clk 0:01:05]} 35. Ke2 {[%clk 0:00:03]}  f6 {[%clk 0:01:04]} 36. Ke3 {[%clk 0:00:02]}  fxe5 {[%clk 0:01:03]} 37. dxe5 {[%clk 0:00:02]}  Rb7 {[%clk 0:00:41]} 38. Kd4 {[%clk 0:00:02]}  Rf7 {[%clk 0:00:41]} 0-1


[Site "https://www.chess.com"]

[Event "Titled Tuesday Blitz June 6 Early 2023"]
[White "Arat, Ufuk Sezen"]
[Black "Todorovic, Bojan"]
[WhiteFideId "6309089"]
[BlackFideId "917087"]
[WhiteElo "2289"]
[BlackElo "2266"]
[Result "1-0"]
[Round "5"]
[TimeControl "180+2"]
[Date "2023.06.06"]
[WhiteClock "0:01:05"]
[BlackClock "0:01:19"]
[Board "116"]

1. e4 {[%clk 0:02:48]}  g6 {[%clk 0:02:59]} 2. d4 {[%clk 0:02:48]}  Bg7 {[%clk 0:02:58]} 3. Nc3 {[%clk 0:02:48]}  d6 {[%clk 0:02:58]} 4. f4 {[%clk 0:02:49]}  a6 {[%clk 0:02:58]} 5. Nf3 {[%clk 0:02:48]}  Nd7 {[%clk 0:02:58]} 6. Be3 {[%clk 0:02:35]}  b5 {[%clk 0:02:56]} 7. Bd3 {[%clk 0:02:33]}  Bb7 {[%clk 0:02:55]} 8. a3 {[%clk 0:02:33]}  e6 {[%clk 0:02:52]} 9. Qd2 {[%clk 0:02:30]}  Ne7 {[%clk 0:02:51]} 10. O-O {[%clk 0:02:31]}  c5 {[%clk 0:02:49]} 11. Rae1 {[%clk 0:02:24]}  O-O {[%clk 0:02:45]} 12. dxc5 {[%clk 0:02:19]}  Nxc5 {[%clk 0:02:40]} 13. e5 {[%clk 0:02:09]}  Nxd3 {[%clk 0:02:33]} 14. cxd3 {[%clk 0:02:09]}  Bxf3 {[%clk 0:02:29]} 15. Rxf3 {[%clk 0:02:05]}  dxe5 {[%clk 0:02:29]} 16. fxe5 {[%clk 0:02:02]}  Bxe5 {[%clk 0:02:26]} 17. Bh6 {[%clk 0:01:55]}  Re8 {[%clk 0:02:20]} 18. Rxe5 {[%clk 0:01:51]}  Qd4+ {[%clk 0:02:20]} 19. Qe3 {[%clk 0:01:49]}  Nf5 {[%clk 0:01:51]} 20. Qxd4 {[%clk 0:01:34]}  Nxd4 {[%clk 0:01:51]} 21. Rf1 {[%clk 0:01:35]}  Rac8 {[%clk 0:01:45]} 22. Ne4 {[%clk 0:01:22]}  Nf5 {[%clk 0:01:46]} 23. Nf6+ {[%clk 0:01:20]}  Kh8 {[%clk 0:01:46]} 24. Nxe8 {[%clk 0:01:19]}  Rxe8 {[%clk 0:01:46]} 25. Bg5 {[%clk 0:01:18]}  h6 {[%clk 0:01:43]} 26. Bf6+ {[%clk 0:01:16]}  Kh7 {[%clk 0:01:43]} 27. g4 {[%clk 0:01:16]}  Nd4 {[%clk 0:01:39]} 28. Rc5 {[%clk 0:01:13]}  Ne2+ {[%clk 0:01:20]} 29. Kg2 {[%clk 0:01:10]}  g5 {[%clk 0:01:19]} 30. Be5 {[%clk 0:01:05]} 1-0


[Site "https://www.chess.com"]

[Event "Titled Tuesday Blitz June 6 Early 2023"]
[White "Mladek, Richard"]
[Black "Cardozo Munar, Carlos Eduardo"]
[WhiteFideId "386588"]
[BlackFideId "4409477"]
[WhiteElo "2332"]
[BlackElo "2067"]
[Result "1-0"]
[Round "5"]
[TimeControl "180+2"]
[Date "2023.06.06"]
[WhiteClock "0:00:33"]
[BlackClock "0:00:07"]
[Board "118"]

1. d4 {[%clk 0:03:00]}  d5 {[%clk 0:02:52]} 2. c4 {[%clk 0:03:01]}  e5 {[%clk 0:02:51]} 3. dxe5 {[%clk 0:02:59]}  d4 {[%clk 0:02:40]} 4. Nf3 {[%clk 0:03:00]}  Nc6 {[%clk 0:02:39]} 5. g3 {[%clk 0:03:00]}  Nge7 {[%clk 0:02:36]} 6. Bg2 {[%clk 0:02:29]}  Ng6 {[%clk 0:02:35]} 7. O-O {[%clk 0:02:30]}  Ngxe5 {[%clk 0:02:34]} 8. Nxe5 {[%clk 0:02:22]}  Nxe5 {[%clk 0:02:35]} 9. b4 {[%clk 0:02:22]}  Nxc4 {[%clk 0:02:06]} 10. Qb3 {[%clk 0:02:22]}  Nb6 {[%clk 0:01:56]} 11. Rd1 {[%clk 0:02:20]}  Be7 {[%clk 0:01:46]} 12. Bb2 {[%clk 0:01:53]}  Bf6 {[%clk 0:01:46]} 13. e3 {[%clk 0:01:50]}  O-O {[%clk 0:01:47]} 14. Bxd4 {[%clk 0:01:47]}  Bxd4 {[%clk 0:01:47]} 15. Rxd4 {[%clk 0:01:47]}  Qe7 {[%clk 0:01:47]} 16. Nc3 {[%clk 0:01:36]}  c6 {[%clk 0:01:42]} 17. a4 {[%clk 0:01:13]}  Be6 {[%clk 0:01:36]} 18. Qb1 {[%clk 0:01:13]}  Rad8 {[%clk 0:01:32]} 19. Rh4 {[%clk 0:01:12]}  g6 {[%clk 0:01:29]} 20. Ne4 {[%clk 0:01:11]}  Bd5 {[%clk 0:01:22]} 21. a5 {[%clk 0:01:02]}  Nc4 {[%clk 0:01:14]} 22. Qc2 {[%clk 0:00:55]}  Rfe8 {[%clk 0:01:13]} 23. Qc3 {[%clk 0:00:55]}  Bxe4 {[%clk 0:01:05]} 24. Rxe4 {[%clk 0:00:54]}  Ne5 {[%clk 0:00:46]} 25. f4 {[%clk 0:00:55]}  Ng4 {[%clk 0:00:39]} 26. Rxe7 {[%clk 0:00:53]}  Rxe7 {[%clk 0:00:40]} 27. Re1 {[%clk 0:00:49]}  Red7 {[%clk 0:00:37]} 28. h3 {[%clk 0:00:47]}  Rd3 {[%clk 0:00:37]} 29. Qc5 {[%clk 0:00:44]}  Rd1 {[%clk 0:00:29]} 30. Rxd1 {[%clk 0:00:42]}  Rxd1+ {[%clk 0:00:28]} 31. Bf1 {[%clk 0:00:42]}  Nf6 {[%clk 0:00:21]} 32. Qc2 {[%clk 0:00:42]}  Rd5 {[%clk 0:00:20]} 33. e4 {[%clk 0:00:42]}  Rd7 {[%clk 0:00:15]} 34. Bc4 {[%clk 0:00:42]}  a6 {[%clk 0:00:13]} 35. e5 {[%clk 0:00:42]}  Nd5 {[%clk 0:00:13]} 36. Bxd5 {[%clk 0:00:36]}  Rxd5 {[%clk 0:00:13]} 37. Kf2 {[%clk 0:00:35]}  Kg7 {[%clk 0:00:13]} 38. Ke3 {[%clk 0:00:35]}  h5 {[%clk 0:00:14]} 39. g4 {[%clk 0:00:36]}  hxg4 {[%clk 0:00:14]} 40. hxg4 {[%clk 0:00:37]}  Rb5 {[%clk 0:00:13]} 41. Qc3 {[%clk 0:00:36]}  Rd5 {[%clk 0:00:13]} 42. e6+ {[%clk 0:00:34]}  Kf8 {[%clk 0:00:14]} 43. Qf6 {[%clk 0:00:32]}  Ke8 {[%clk 0:00:06]} 44. Qxf7+ {[%clk 0:00:32]}  Kd8 {[%clk 0:00:07]} 45. e7+ {[%clk 0:00:32]}  Kd7 {[%clk 0:00:07]} 46. e8=Q+ {[%clk 0:00:33]} 1-0


[Site "https://www.chess.com"]

[Event "Titled Tuesday Blitz June 6 Early 2023"]
[White "Dubreuil, Julien"]
[Black "Sychev, Klementy"]
[WhiteFideId "621285"]
[BlackFideId "4114060"]
[WhiteElo "2281"]
[BlackElo "2583"]
[Result "0-1"]
[Round "5"]
[TimeControl "180+2"]
[Date "2023.06.06"]
[WhiteClock "0:00:14"]
[BlackClock "0:00:19"]
[Board "122"]

1. e4 {[%clk 0:03:00]}  c5 {[%clk 0:02:59]} 2. Nf3 {[%clk 0:03:00]}  d6 {[%clk 0:03:00]} 3. d4 {[%clk 0:02:58]}  cxd4 {[%clk 0:03:01]} 4. Nxd4 {[%clk 0:02:58]}  Nf6 {[%clk 0:03:01]} 5. Nc3 {[%clk 0:02:58]}  a6 {[%clk 0:03:02]} 6. Bg5 {[%clk 0:02:58]}  Nbd7 {[%clk 0:03:00]} 7. Qe2 {[%clk 0:02:58]}  h6 {[%clk 0:02:59]} 8. Bh4 {[%clk 0:02:57]}  g6 {[%clk 0:03:00]} 9. O-O-O {[%clk 0:02:56]}  e5 {[%clk 0:02:57]} 10. Nb3 {[%clk 0:02:46]}  Be7 {[%clk 0:02:57]} 11. Kb1 {[%clk 0:02:41]}  b5 {[%clk 0:02:56]} 12. Bg3 {[%clk 0:02:32]}  Bb7 {[%clk 0:02:54]} 13. f3 {[%clk 0:02:27]}  Rc8 {[%clk 0:02:54]} 14. Qd2 {[%clk 0:02:26]}  Kf8 {[%clk 0:02:41]} 15. Nd5 {[%clk 0:02:18]}  Nxd5 {[%clk 0:02:40]} 16. exd5 {[%clk 0:02:19]}  Nf6 {[%clk 0:02:39]} 17. Bh4 {[%clk 0:02:07]}  Nxd5 {[%clk 0:02:14]} 18. Bxe7+ {[%clk 0:02:02]}  Qxe7 {[%clk 0:02:15]} 19. Na5 {[%clk 0:01:58]}  Ba8 {[%clk 0:02:15]} 20. c4 {[%clk 0:01:58]}  bxc4 {[%clk 0:02:14]} 21. Bxc4 {[%clk 0:01:58]}  Rc5 {[%clk 0:02:14]} 22. b4 {[%clk 0:01:51]}  Rxc4 {[%clk 0:02:10]} 23. Nxc4 {[%clk 0:01:51]}  Kg7 {[%clk 0:02:10]} 24. Ne3 {[%clk 0:01:38]}  Nxe3 {[%clk 0:02:05]} 25. Qxe3 {[%clk 0:01:39]}  Rb8 {[%clk 0:02:05]} 26. Rd4 {[%clk 0:01:21]}  a5 {[%clk 0:02:02]} 27. Rhd1 {[%clk 0:01:16]}  d5 {[%clk 0:01:56]} 28. f4 {[%clk 0:01:17]}  Rxb4+ {[%clk 0:01:49]} 29. Ka1 {[%clk 0:01:10]}  Rxd4 {[%clk 0:01:46]} 30. Rxd4 {[%clk 0:01:09]}  e4 {[%clk 0:01:22]} 31. Rd2 {[%clk 0:00:48]}  Kh7 {[%clk 0:01:15]} 32. g4 {[%clk 0:00:47]}  Qf6+ {[%clk 0:01:12]} 33. Kb1 {[%clk 0:00:43]}  Bc6 {[%clk 0:01:08]} 34. h3 {[%clk 0:00:40]}  Bb5 {[%clk 0:00:50]} 35. a3 {[%clk 0:00:24]}  Bd3+ {[%clk 0:00:49]} 36. Rxd3 {[%clk 0:00:25]}  exd3 {[%clk 0:00:49]} 37. Qxd3 {[%clk 0:00:20]}  Qxf4 {[%clk 0:00:31]} 38. Qxd5 {[%clk 0:00:20]}  a4 {[%clk 0:00:30]} 39. Kc2 {[%clk 0:00:17]}  Kg7 {[%clk 0:00:30]} 40. Kd3 {[%clk 0:00:14]}  Qg3+ {[%clk 0:00:29]} 41. Kc4 {[%clk 0:00:15]}  Qb3+ {[%clk 0:00:23]} 42. Kc5 {[%clk 0:00:14]}  Qxa3+ {[%clk 0:00:23]} 43. Kc6 {[%clk 0:00:15]}  Qc3+ {[%clk 0:00:22]} 44. Kd7 {[%clk 0:00:15]}  a3 {[%clk 0:00:21]} 45. Ke8 {[%clk 0:00:14]}  Qc8+ {[%clk 0:00:19]} 46. Ke7 {[%clk 0:00:14]}  Qe6+ {[%clk 0:00:19]} 0-1


[Site "https://www.chess.com"]

[Event "Titled Tuesday Blitz June 6 Early 2023"]
[White "Czerw, Dawid"]
[Black "Fernandez Garcia, Gumersindo"]
[WhiteFideId "1145746"]
[BlackFideId "24516740"]
[WhiteElo "2144"]
[BlackElo "2093"]
[Result "1/2-1/2"]
[Round "5"]
[TimeControl "180+2"]
[Date "2023.06.06"]
[WhiteClock "0:00:03"]
[BlackClock "0:00:05"]
[Board "125"]

1. Nf3 {[%clk 0:03:00]}  Nf6 {[%clk 0:02:59]} 2. Ng1 {[%clk 0:03:01]}  e5 {[%clk 0:02:53]} 3. Nc3 {[%clk 0:03:02]}  d5 {[%clk 0:02:53]} 4. Nb1 {[%clk 0:03:02]}  Nc6 {[%clk 0:02:49]} 5. e3 {[%clk 0:03:02]}  Bd6 {[%clk 0:02:48]} 6. d4 {[%clk 0:03:01]}  exd4 {[%clk 0:02:45]} 7. exd4 {[%clk 0:03:01]}  O-O {[%clk 0:02:46]} 8. Nf3 {[%clk 0:02:59]}  Bg4 {[%clk 0:02:42]} 9. Be2 {[%clk 0:02:58]}  Re8 {[%clk 0:02:40]} 10. O-O {[%clk 0:02:58]}  Ne4 {[%clk 0:02:33]} 11. h3 {[%clk 0:02:40]}  Bf5 {[%clk 0:02:05]} 12. Nc3 {[%clk 0:02:38]}  Nxc3 {[%clk 0:01:54]} 13. bxc3 {[%clk 0:02:37]}  Ne7 {[%clk 0:01:54]} 14. Bd3 {[%clk 0:02:30]}  Be4 {[%clk 0:01:52]} 15. Nd2 {[%clk 0:02:17]}  Bxd3 {[%clk 0:01:42]} 16. cxd3 {[%clk 0:02:18]}  Ng6 {[%clk 0:01:42]} 17. g3 {[%clk 0:02:00]}  c6 {[%clk 0:01:41]} 18. Kg2 {[%clk 0:01:59]}  Qf6 {[%clk 0:01:25]} 19. Nf3 {[%clk 0:01:46]}  h6 {[%clk 0:01:25]} 20. Nh2 {[%clk 0:01:42]}  Re6 {[%clk 0:01:20]} 21. f4 {[%clk 0:01:26]}  Qe7 {[%clk 0:01:13]} 22. Rf2 {[%clk 0:01:22]}  f5 {[%clk 0:01:11]} 23. Nf3 {[%clk 0:01:18]}  Rf8 {[%clk 0:00:57]} 24. a4 {[%clk 0:01:16]}  h5 {[%clk 0:00:49]} 25. h4 {[%clk 0:01:11]}  Nh8 {[%clk 0:00:48]} 26. Ng5 {[%clk 0:01:05]}  Re1 {[%clk 0:00:44]} 27. Qxh5 {[%clk 0:00:56]}  g6 {[%clk 0:00:41]} 28. Qf3 {[%clk 0:00:54]}  Nf7 {[%clk 0:00:37]} 29. Bb2 {[%clk 0:00:39]}  Nxg5 {[%clk 0:00:36]} 30. hxg5 {[%clk 0:00:34]}  Rxa1 {[%clk 0:00:35]} 31. Bxa1 {[%clk 0:00:35]}  Kg7 {[%clk 0:00:34]} 32. Re2 {[%clk 0:00:32]}  Qd7 {[%clk 0:00:29]} 33. Qe3 {[%clk 0:00:29]}  Rf7 {[%clk 0:00:26]} 34. Qe6 {[%clk 0:00:21]}  Qc7 {[%clk 0:00:26]} 35. Bb2 {[%clk 0:00:19]}  b5 {[%clk 0:00:25]} 36. c4 {[%clk 0:00:18]}  bxa4 {[%clk 0:00:23]} 37. c5 {[%clk 0:00:18]}  Bf8 {[%clk 0:00:19]} 38. Kf3 {[%clk 0:00:18]}  Qb7 {[%clk 0:00:17]} 39. Rh2 {[%clk 0:00:17]}  Qe7 {[%clk 0:00:14]} 40. Qxc6 {[%clk 0:00:13]}  Qe1 {[%clk 0:00:13]} 41. Qxd5 {[%clk 0:00:05]}  Qf1+ {[%clk 0:00:12]} 42. Rf2 {[%clk 0:00:05]}  Qd1+ {[%clk 0:00:12]} 43. Kg2 {[%clk 0:00:04]}  Qxd3 {[%clk 0:00:11]} 44. Qe5+ {[%clk 0:00:04]}  Kg8 {[%clk 0:00:11]} 45. d5 {[%clk 0:00:05]}  Bg7 {[%clk 0:00:10]} 46. Qe8+ {[%clk 0:00:05]}  Rf8 {[%clk 0:00:11]} 47. Qe6+ {[%clk 0:00:05]}  Kh7 {[%clk 0:00:11]} 48. Bxg7 {[%clk 0:00:06]}  Kxg7 {[%clk 0:00:11]} 49. d6 {[%clk 0:00:03]}  Rf7 {[%clk 0:00:09]} 50. Qe5+ {[%clk 0:00:03]}  Kg8 {[%clk 0:00:09]} 51. c6 {[%clk 0:00:03]}  Qc4 {[%clk 0:00:06]} 52. c7 {[%clk 0:00:03]}  Qc6+ {[%clk 0:00:06]} 53. Kg1 {[%clk 0:00:03]}  Rh7 {[%clk 0:00:05]} 54. Qe6+ {[%clk 0:00:02]}  Kg7 {[%clk 0:00:05]} 55. Qf6+ {[%clk 0:00:02]}  Kg8 {[%clk 0:00:05]} 56. Qd8+ {[%clk 0:00:01]}  Kg7 {[%clk 0:00:05]} 57. Qf6+ {[%clk 0:00:02]}  Kg8 {[%clk 0:00:05]} 58. Qe6+ {[%clk 0:00:03]}  Kg7 {[%clk 0:00:05]} 59. Qe5+ {[%clk 0:00:03]}  Kg8 {[%clk 0:00:05]} 60. Qe6+ {[%clk 0:00:03]} 1/2-1/2


[Site "https://www.chess.com"]

[Event "Titled Tuesday Blitz June 6 Early 2023"]
[White "Malyi, Viacheslav"]
[Black "Schuh, Karsten"]
[WhiteFideId "14123983"]
[BlackFideId "4637950"]
[WhiteElo "2291"]
[BlackElo "2177"]
[Result "1-0"]
[Round "5"]
[TimeControl "180+2"]
[Date "2023.06.06"]
[WhiteClock "0:01:31"]
[BlackClock "0:01:33"]
[Board "127"]

1. e4 {[%clk 0:02:57]}  c5 {[%clk 0:02:59]} 2. Nf3 {[%clk 0:02:49]}  Nc6 {[%clk 0:02:59]} 3. d4 {[%clk 0:02:50]}  cxd4 {[%clk 0:02:59]} 4. Nxd4 {[%clk 0:02:51]}  Qc7 {[%clk 0:03:00]} 5. Nc3 {[%clk 0:02:51]}  e6 {[%clk 0:03:00]} 6. Be3 {[%clk 0:02:50]}  a6 {[%clk 0:02:59]} 7. Qd2 {[%clk 0:02:50]}  Nf6 {[%clk 0:02:59]} 8. O-O-O {[%clk 0:02:50]}  Bb4 {[%clk 0:02:54]} 9. f3 {[%clk 0:02:49]}  O-O {[%clk 0:02:52]} 10. a3 {[%clk 0:02:46]}  Be7 {[%clk 0:02:49]} 11. g4 {[%clk 0:02:43]}  d6 {[%clk 0:02:47]} 12. g5 {[%clk 0:02:43]}  Nd7 {[%clk 0:02:47]} 13. g6 {[%clk 0:02:38]}  hxg6 {[%clk 0:02:43]} 14. h4 {[%clk 0:02:38]}  b5 {[%clk 0:02:41]} 15. h5 {[%clk 0:02:36]}  Nde5 {[%clk 0:02:39]} 16. hxg6 {[%clk 0:02:29]}  Nxg6 {[%clk 0:02:34]} 17. Qh2 {[%clk 0:02:23]}  Rd8 {[%clk 0:02:27]} 18. Bd3 {[%clk 0:02:12]}  Nce5 {[%clk 0:02:19]} 19. Rdg1 {[%clk 0:02:05]}  Bf6 {[%clk 0:02:12]} 20. f4 {[%clk 0:02:00]}  Nxd3+ {[%clk 0:02:11]} 21. cxd3 {[%clk 0:02:01]}  Bxd4 {[%clk 0:01:58]} 22. Bxd4 {[%clk 0:02:02]}  e5 {[%clk 0:01:58]} 23. Rxg6 {[%clk 0:01:43]}  fxg6 {[%clk 0:01:56]} 24. fxe5 {[%clk 0:01:43]}  Be6 {[%clk 0:01:38]} 25. exd6 {[%clk 0:01:39]}  Rxd6 {[%clk 0:01:33]} 26. Qh8+ {[%clk 0:01:32]}  Kf7 {[%clk 0:01:34]} 27. Qxg7+ {[%clk 0:01:31]}  Ke8 {[%clk 0:01:33]} 28. Rh8+ {[%clk 0:01:31]} 1-0


[Site "https://www.chess.com"]

[Event "Titled Tuesday Blitz June 6 Early 2023"]
[White "Omelja, Artem"]
[Black "Hoffmann, Asa"]
[WhiteFideId "14119846"]
[BlackFideId "2001470"]
[WhiteElo "2404"]
[BlackElo "2117"]
[Result "1-0"]
[Round "5"]
[TimeControl "180+2"]
[Date "2023.06.06"]
[WhiteClock "0:00:12"]
[BlackClock "0:00:23"]
[Board "129"]

1. e4 {[%clk 0:02:59]}  d6 {[%clk 0:02:55]} 2. d4 {[%clk 0:02:59]}  Nf6 {[%clk 0:02:55]} 3. Nc3 {[%clk 0:02:59]}  c6 {[%clk 0:02:54]} 4. f3 {[%clk 0:02:59]}  Nbd7 {[%clk 0:02:53]} 5. Be3 {[%clk 0:03:00]}  e5 {[%clk 0:02:53]} 6. Nge2 {[%clk 0:03:01]}  Be7 {[%clk 0:02:52]} 7. Qd2 {[%clk 0:03:01]}  b5 {[%clk 0:02:51]} 8. O-O-O {[%clk 0:03:01]}  Qc7 {[%clk 0:02:51]} 9. g4 {[%clk 0:03:01]}  Nb6 {[%clk 0:02:50]} 10. Ng3 {[%clk 0:03:00]}  g6 {[%clk 0:02:48]} 11. h4 {[%clk 0:02:59]}  h5 {[%clk 0:02:45]} 12. g5 {[%clk 0:03:00]}  Nfd7 {[%clk 0:02:44]} 13. f4 {[%clk 0:03:01]}  Bb7 {[%clk 0:02:37]} 14. dxe5 {[%clk 0:03:00]}  dxe5 {[%clk 0:02:35]} 15. f5 {[%clk 0:03:01]}  O-O-O {[%clk 0:02:32]} 16. Qf2 {[%clk 0:02:55]}  Kb8 {[%clk 0:02:22]} 17. Be2 {[%clk 0:02:54]}  Bb4 {[%clk 0:02:18]} 18. Nb1 {[%clk 0:02:53]}  Rhe8 {[%clk 0:02:00]} 19. Rhf1 {[%clk 0:02:33]}  Nf8 {[%clk 0:01:47]} 20. fxg6 {[%clk 0:02:21]}  fxg6 {[%clk 0:01:40]} 21. c3 {[%clk 0:02:17]}  Be7 {[%clk 0:01:36]} 22. Bc5 {[%clk 0:02:16]}  Ne6 {[%clk 0:01:28]} 23. Bxe7 {[%clk 0:02:13]}  Qxe7 {[%clk 0:01:27]} 24. Qf6 {[%clk 0:02:10]}  Nf4 {[%clk 0:01:25]} 25. Rxd8+ {[%clk 0:01:42]}  Qxd8 {[%clk 0:01:23]} 26. Qxd8+ {[%clk 0:01:08]}  Rxd8 {[%clk 0:01:23]} 27. Nd2 {[%clk 0:01:09]}  Bc8 {[%clk 0:01:17]} 28. Bf3 {[%clk 0:01:07]}  Be6 {[%clk 0:01:12]} 29. b3 {[%clk 0:01:06]}  Kc7 {[%clk 0:01:10]} 30. Kc2 {[%clk 0:01:04]}  a5 {[%clk 0:01:09]} 31. Ne2 {[%clk 0:01:05]}  Rf8 {[%clk 0:01:08]} 32. Nxf4 {[%clk 0:01:02]}  Rxf4 {[%clk 0:01:07]} 33. Be2 {[%clk 0:00:58]}  Rxh4 {[%clk 0:01:01]} 34. Rf6 {[%clk 0:00:57]}  Bg4 {[%clk 0:00:57]} 35. Bxg4 {[%clk 0:00:57]}  Rxg4 {[%clk 0:00:56]} 36. Rxg6 {[%clk 0:00:56]}  h4 {[%clk 0:00:56]} 37. Nf3 {[%clk 0:00:53]}  Rg2+ {[%clk 0:00:55]} 38. Kd3 {[%clk 0:00:52]}  h3 {[%clk 0:00:55]} 39. Nxe5 {[%clk 0:00:47]}  h2 {[%clk 0:00:52]} 40. Rxc6+ {[%clk 0:00:47]}  Kb7 {[%clk 0:00:51]} 41. Rh6 {[%clk 0:00:48]}  Rxg5 {[%clk 0:00:49]} 42. Nf3 {[%clk 0:00:48]}  Rg3 {[%clk 0:00:48]} 43. Ke3 {[%clk 0:00:48]}  Nd7 {[%clk 0:00:44]} 44. Rxh2 {[%clk 0:00:42]}  Ne5 {[%clk 0:00:44]} 45. Kf4 {[%clk 0:00:37]}  Rxf3+ {[%clk 0:00:43]} 46. Kxe5 {[%clk 0:00:34]}  Rxc3 {[%clk 0:00:43]} 47. Kd6 {[%clk 0:00:34]}  Kb6 {[%clk 0:00:42]} 48. Rd2 {[%clk 0:00:30]}  Rc8 {[%clk 0:00:39]} 49. Kd7 {[%clk 0:00:28]}  Rc7+ {[%clk 0:00:39]} 50. Kd6 {[%clk 0:00:22]}  Rc8 {[%clk 0:00:37]} 51. Rd5 {[%clk 0:00:21]}  Rd8+ {[%clk 0:00:35]} 52. Ke7 {[%clk 0:00:21]}  Rh8 {[%clk 0:00:31]} 53. e5 {[%clk 0:00:21]}  Kc6 {[%clk 0:00:30]} 54. Rd6+ {[%clk 0:00:20]}  Kc5 {[%clk 0:00:30]} 55. Rd2 {[%clk 0:00:16]}  Rh7+ {[%clk 0:00:29]} 56. Kf6 {[%clk 0:00:14]}  Rh6+ {[%clk 0:00:28]} 57. Kg5 {[%clk 0:00:15]}  Rh1 {[%clk 0:00:26]} 58. e6 {[%clk 0:00:14]}  Re1 {[%clk 0:00:25]} 59. Kf6 {[%clk 0:00:15]}  Kb4 {[%clk 0:00:25]} 60. e7 {[%clk 0:00:14]}  Kc3 {[%clk 0:00:25]} 61. Rd5 {[%clk 0:00:13]}  b4 {[%clk 0:00:23]} 62. Re5 {[%clk 0:00:12]} 1-0


[Site "https://www.chess.com"]

[Event "Titled Tuesday Blitz June 6 Early 2023"]
[White "Srebrnic, Marko"]
[Black "Lacasa Diaz, Jose Antonio"]
[WhiteFideId "14603616"]
[BlackFideId "2203375"]
[WhiteElo "2341"]
[BlackElo "2338"]
[Result "1/2-1/2"]
[Round "5"]
[TimeControl "180+2"]
[Date "2023.06.06"]
[WhiteClock "0:00:09"]
[BlackClock "0:00:04"]
[Board "132"]

1. e4 {[%clk 0:03:00]}  c5 {[%clk 0:02:59]} 2. Nf3 {[%clk 0:02:59]}  Nf6 {[%clk 0:02:59]} 3. Qe2 {[%clk 0:02:57]}  Nc6 {[%clk 0:02:58]} 4. c3 {[%clk 0:02:57]}  e5 {[%clk 0:02:53]} 5. d4 {[%clk 0:02:52]}  cxd4 {[%clk 0:02:52]} 6. Bg5 {[%clk 0:02:51]}  Be7 {[%clk 0:02:49]} 7. cxd4 {[%clk 0:02:46]}  Nxd4 {[%clk 0:02:45]} 8. Nxd4 {[%clk 0:02:46]}  exd4 {[%clk 0:02:44]} 9. Nd2 {[%clk 0:02:45]}  O-O {[%clk 0:02:38]} 10. Bxf6 {[%clk 0:02:31]}  Bxf6 {[%clk 0:02:37]} 11. Qd3 {[%clk 0:02:32]}  d5 {[%clk 0:02:35]} 12. f3 {[%clk 0:02:28]}  Re8 {[%clk 0:02:27]} 13. Be2 {[%clk 0:02:25]}  dxe4 {[%clk 0:02:22]} 14. fxe4 {[%clk 0:02:26]}  Bg5 {[%clk 0:02:18]} 15. O-O {[%clk 0:02:21]}  Bxd2 {[%clk 0:02:09]} 16. Qxd2 {[%clk 0:02:21]}  Rxe4 {[%clk 0:02:08]} 17. Bd3 {[%clk 0:02:21]}  Re3 {[%clk 0:02:02]} 18. Rae1 {[%clk 0:02:18]}  Qe7 {[%clk 0:01:58]} 19. Bc4 {[%clk 0:02:05]}  Be6 {[%clk 0:01:45]} 20. Qxd4 {[%clk 0:02:01]}  Rxe1 {[%clk 0:01:42]} 21. Rxe1 {[%clk 0:02:02]}  a6 {[%clk 0:01:22]} 22. Qb6 {[%clk 0:01:47]}  Re8 {[%clk 0:01:16]} 23. Bd5 {[%clk 0:01:44]}  Qh4 {[%clk 0:01:02]} 24. g3 {[%clk 0:01:43]}  Qf6 {[%clk 0:00:46]} 25. Bxb7 {[%clk 0:01:34]}  Rb8 {[%clk 0:00:40]} 26. Rd1 {[%clk 0:01:00]}  h5 {[%clk 0:00:34]} 27. Qc7 {[%clk 0:00:52]}  Rf8 {[%clk 0:00:20]} 28. Qc3 {[%clk 0:00:38]}  Rb8 {[%clk 0:00:16]} 29. Bxa6 {[%clk 0:00:29]}  Rxb2 {[%clk 0:00:16]} 30. Qxf6 {[%clk 0:00:25]}  gxf6 {[%clk 0:00:17]} 31. a4 {[%clk 0:00:21]}  Ra2 {[%clk 0:00:15]} 32. Bb5 {[%clk 0:00:20]}  Bh3 {[%clk 0:00:15]} 33. Rd4 {[%clk 0:00:14]}  Rg2+ {[%clk 0:00:13]} 34. Kh1 {[%clk 0:00:13]}  Ra2 {[%clk 0:00:12]} 35. Rd1 {[%clk 0:00:13]}  Kg7 {[%clk 0:00:11]} 36. Kg1 {[%clk 0:00:11]}  Rg2+ {[%clk 0:00:11]} 37. Kh1 {[%clk 0:00:11]}  Ra2 {[%clk 0:00:12]} 38. Kg1 {[%clk 0:00:10]}  h4 {[%clk 0:00:06]} 39. gxh4 {[%clk 0:00:10]}  Rg2+ {[%clk 0:00:06]} 40. Kh1 {[%clk 0:00:11]}  Ra2 {[%clk 0:00:06]} 41. Rg1+ {[%clk 0:00:10]}  Kf8 {[%clk 0:00:05]} 42. Re1 {[%clk 0:00:09]}  Kg7 {[%clk 0:00:03]} 43. h5 {[%clk 0:00:09]}  Kh6 {[%clk 0:00:03]} 44. Kg1 {[%clk 0:00:08]}  Rg2+ {[%clk 0:00:02]} 45. Kh1 {[%clk 0:00:09]}  Ra2 {[%clk 0:00:03]} 46. Kg1 {[%clk 0:00:09]}  Rg2+ {[%clk 0:00:03]} 47. Kh1 {[%clk 0:00:09]}  Ra2 {[%clk 0:00:04]} 1/2-1/2


[Site "https://www.chess.com"]